fUSD/lending_fUSD_20250616
["ID","MTS","AMOUNT","RATE_DAILY","PERIOD"]
[366187575,1750104648251,-490.0,0.00015827,2]
[366187576,1750104648260,-490.0,0.00015827,2]
[366187577,1750104648270,-490.62,0.00015827,2]
[366187578,1750104648279,-490.0,0.00015827,2]
[366187579,1750104648289,-490.0,0.00015827,2]
[366187580,1750104648299,-490.0,0.00015827,2]
[366187581,1750104648308,-490.0,0.00015827,2]
[366187582,1750104648318,-490.0,0.00015827,2]
[366187583,1750104648328,-490.0,0.00015827,2]
[366187584,1750104648337,-500.13,0.00015827,2]
[366187585,1750104648348,-747.73,0.00015827,2]
[366187586,1750104648358,-490.0,0.00015827,2]
[366187587,1750104648368,-490.0,0.00015827,2]
[366187588,1750104648378,-490.0,0.00015827,2]
[366187589,1750104648387,-490.0,0.00015827,2]
[366187590,1750104648397,-600.61,0.00015827,2]
[366187591,1750104648407,-490.0,0.00015827,2]
[366187592,1750104648417,-506.11,0.00015827,2]
[366187593,1750104648426,-490.0,0.00015827,2]
[366187594,1750104648436,-490.0,0.00015827,2]
[366187595,1750104648446,-601.49,0.00015827,2]
[366187596,1750104648455,-490.0,0.00015827,2]
[366187597,1750104648465,-857.07,0.00015827,2]
[366187598,1750104648475,-586.62,0.00015827,2]
[366187599,1750104648485,-490.0,0.00015827,2]
[366187600,1750104648495,-469.47957204,0.00015827,2]
[366187601,1750104648505,-636.95,0.00015827,2]
[366187602,1750104648515,-490.0,0.00015827,2]
[366187603,1750104648526,-490.0,0.00015827,2]
[366187604,1750104648536,-490.0,0.00015827,2]
[366187605,1750104648546,-490.0,0.00015827,2]
[366187606,1750104648557,-440.07099439,0.00015827,2]
[366187607,1750104648567,-490.0,0.00015827,2]
[366187608,1750104648578,-490.0,0.00015827,2]
[366187609,1750104648588,-490.0,0.00015827,2]
[366187610,1750104648599,-707.95,0.00015827,2]
[366187611,1750104648609,-490.0,0.00015827,2]
[366187612,1750104648620,-490.0,0.00015827,2]
[366187613,1750104648634,-490.0,0.00015827,2]
[366187614,1750104648645,-565.53,0.00015827,2]
[366187615,1750104648655,-872.23,0.00015827,2]
[366187616,1750104648665,-490.0,0.00015827,2]
[366187617,1750104648675,-519.76,0.00015827,2]
[366187618,1750104648685,-490.0,0.00015827,2]
[366187619,1750104648695,-513.07576529,0.00015827,2]
[366187620,1750104648706,-490.0,0.00015827,2]
[366187621,1750104648716,-340.95150009,0.00015827,2]
[366187622,1750104648726,-938.64,0.00015827,2]
[366187623,1750104648735,-2278.31,0.00015827,2]
[366187624,1750104648745,-490.0,0.00015827,2]
[366187625,1750104648755,-490.0,0.00015827,2]
[366187626,1750104648766,-844.56,0.00015827,2]
[366187627,1750104648776,-490.0,0.00015827,2]
[366187628,1750104648787,-490.0,0.00015827,2]
[366187629,1750104648798,-1137.0,0.00015827,2]
[366187630,1750104648812,-490.0,0.00015827,2]
[366187631,1750104648822,-7450.49,0.00015827,2]
[366187632,1750104648833,-490.0,0.00015827,2]
[366187633,1750104648842,-645.18,0.00015827,2]
[366187634,1750104648853,-651.62,0.00015827,2]
[366187635,1750104648863,-1053.330119,0.00015827,2]
[366187636,1750104648873,-490.0,0.00015827,2]
[366187637,1750104648885,-1874.42,0.00015827,2]
[366187638,1750104648897,-635.92,0.00015827,2]
[366187639,1750104648907,-927.76,0.00015827,2]
[366187640,1750104648918,-562.92,0.00015827,2]
[366187641,1750104648928,-816.34,0.00015827,2]
[366187642,1750104648939,-846.17,0.00015827,2]
[366187643,1750104648949,-574.26,0.00015827,2]
[366187644,1750104648960,-756.05,0.00015827,2]
[366187645,1750104648970,-490.0,0.00015827,2]
[366187646,1750104648981,-490.0,0.00015827,2]
[366187647,1750104648991,-490.0,0.00015827,2]
[366187648,1750104649001,-1597.18,0.00015827,2]
[366187649,1750104649011,-1713.39,0.00015827,2]
[366187650,1750104649021,-490.0,0.00015827,2]
[366187651,1750104649031,-490.0,0.00015827,2]
[366187652,1750104649042,-490.0,0.00015827,2]
[366187653,1750104649052,-490.0,0.00015827,2]
[366187654,1750104649063,-490.0,0.00015827,2]
[366187655,1750104649073,-763.34,0.00015827,2]
[366187656,1750104649084,-1093.44,0.00015827,2]
[366187657,1750104649094,-690.44,0.00015827,2]
[366187658,1750104649104,-1941.86,0.00015827,2]
[366187659,1750104649114,-490.0,0.00015827,2]
[366187660,1750104649123,-1198.82,0.00015827,2]
[366187661,1750104649135,-491.05,0.00015827,2]
[366187662,1750104649145,-643.88,0.00015827,2]
[366187663,1750104649155,-501.49,0.00015827,2]
[366187664,1750104649166,-643.68,0.00015827,2]
[366187665,1750104649176,-490.0,0.00015827,2]
[366187666,1750104649186,-482.47779108,0.00015827,2]
[366187667,1750104649195,-491.83,0.00015827,2]
[366187668,1750104649206,-2719.56,0.00015827,2]
[366187669,1750104649216,-490.0,0.00015827,2]
[366187670,1750104649226,-490.0,0.00015827,2]
[366187671,1750104649236,-598.64,0.00015827,2]
[366187672,1750104649246,-490.0,0.00015827,2]
[366187673,1750104649256,-490.0,0.00015827,2]
[366187674,1750104649266,-830.48,0.00015827,2]
[366187675,1750104649277,-490.0,0.00015827,2]
[366187676,1750104649286,-490.0,0.00015827,2]
[366187677,1750104649297,-939.23,0.00015827,2]
[366187678,1750104649307,-1357.86,0.00015827,2]
[366187679,1750104649318,-1481.01,0.00015827,2]
[366187680,1750104649328,-490.0,0.00015827,2]
[366187681,1750104649339,-574.31,0.00015827,2]
[366187682,1750104649348,-906.95,0.00015827,2]
[366187683,1750104649359,-490.0,0.00015827,2]
[366187684,1750104649369,-490.0,0.00015827,2]
[366187685,1750104649379,-490.0,0.00015827,2]
[366187686,1750104649390,-490.0,0.00015827,2]
[366187687,1750104649400,-1940.92,0.00015827,2]
[366187688,1750104649415,-490.0,0.00015827,2]
[366187689,1750104649426,-490.0,0.00015827,2]
[366187690,1750104649437,-490.0,0.00015827,2]
[366187691,1750104649447,-490.0,0.00015827,2]
[366187692,1750104649457,-3585.03,0.00015827,2]
[366187693,1750104649468,-490.0,0.00015827,2]
[366187694,1750104649478,-490.0,0.00015827,2]
[366187695,1750104649488,-596.59,0.00015827,2]
[366187696,1750104649499,-490.0,0.00015827,2]
[366187697,1750104649508,-490.0,0.00015827,2]
[366187698,1750104649519,-490.0,0.00015827,2]
[366187699,1750104649530,-1302.19,0.00015827,2]
[366187700,1750104649541,-498.26,0.00015827,2]
[366187701,1750104649552,-490.0,0.00015827,2]
[366187702,1750104649562,-1195.37,0.00015827,2]
[366187703,1750104649574,-520.64,0.00015827,2]
[366187704,1750104649585,-490.0,0.00015827,2]
[366187705,1750104649596,-490.0,0.00015827,2]
[366187706,1750104649607,-490.0,0.00015827,2]
[366187707,1750104649618,-490.0,0.00015827,2]
[366187708,1750104649630,-3409.01,0.00015827,2]
[366187709,1750104649642,-3486.61,0.00015827,2]
[366187710,1750104649652,-490.0,0.00015827,2]
[366187711,1750104649663,-490.0,0.00015827,2]
[366187712,1750104649673,-490.0,0.00015827,2]
[366187713,1750104649684,-490.0,0.00015827,2]
[366187714,1750104649694,-576.66,0.00015827,2]
[366187715,1750104649704,-490.0,0.00015827,2]
[366187716,1750104649714,-1121.01,0.00015827,2]
[366187717,1750104649724,-490.0,0.00015827,2]
[366187718,1750104649735,-1539.45,0.00015827,2]
[366187719,1750104649745,-490.0,0.00015827,2]
[366187720,1750104649756,-490.0,0.00015827,2]
[366187721,1750104649766,-8919.71,0.00015827,2]
[366187722,1750104649777,-2152.11,0.00015827,2]
[366187723,1750104649898,-490.0,0.00015827,2]
[366187724,1750104649910,-490.0,0.00015827,2]
[366187725,1750104649920,-490.0,0.00015827,2]
[366187726,1750104649930,-490.0,0.00015827,2]
[366187727,1750104649940,-2373.98,0.00015827,2]
[366187728,1750104649950,-490.0,0.00015827,2]
[366187729,1750104649961,-703.85,0.00015827,2]
[366187730,1750104649972,-490.0,0.00015827,2]
[366187731,1750104649982,-765.88,0.00015827,2]
[366187732,1750104649992,-490.0,0.00015827,2]
[366187733,1750104650002,-668.88,0.00015827,2]
[366187734,1750104650012,-392.46964803,0.00015827,2]
[366187735,1750104650022,-490.0,0.00015827,2]
[366187736,1750104650032,-935.48,0.00015827,2]
[366187737,1750104650042,-1293.43,0.00015827,2]
[366187738,1750104650052,-511.11978403,0.00015827,2]
[366187739,1750104650062,-490.0,0.00015827,2]
[366187740,1750104650072,-768.66,0.00015827,2]
[366187741,1750104650083,-490.0,0.00015827,2]
[366187742,1750104650093,-490.0,0.00015827,2]
[366187743,1750104650103,-1265.71,0.00015827,2]
[366187744,1750104650113,-2680.03,0.00015827,2]
[366187745,1750104650123,-490.0,0.00015827,2]
[366187746,1750104650135,-490.0,0.00015827,2]
[366187747,1750104650145,-799.33,0.00015827,2]
[366187748,1750104650154,-1123.57,0.00015827,2]
[366187749,1750104650164,-683.91,0.00015827,2]
[366187750,1750104650174,-680.87,0.00015827,2]
[366187751,1750104650184,-533.06887041,0.00015827,2]
[366187752,1750104650194,-490.0,0.00015827,2]
[366187753,1750104650204,-490.0,0.00015827,2]
[366187754,1750104650214,-490.0,0.00015827,2]
[366187755,1750104650224,-496.21,0.00015827,2]
[366187756,1750104650234,-339.75593421,0.00015827,2]
[366187757,1750104650243,-984.32,0.00015827,2]
[366187758,1750104650254,-490.0,0.00015827,2]
[366187759,1750104650271,-515.93,0.00015827,2]
[366187760,1750104650281,-490.0,0.00015827,2]
[366187761,1750104650292,-1265.19,0.00015827,2]
[366187762,1750104650302,-1368.0,0.00015827,2]
[366187763,1750104650312,-1507.29,0.00015827,2]
[366187764,1750104650322,-490.0,0.00015827,2]
[366187765,1750104650334,-940.17,0.00015827,2]
[366187766,1750104650345,-490.0,0.00015827,2]
[366187767,1750104650355,-490.0,0.00015827,2]
[366187768,1750104650367,-539.37,0.00015827,2]
[366187769,1750104650377,-490.0,0.00015827,2]
[366187770,1750104650387,-490.0,0.00015827,2]
[366187771,1750104650397,-594.65,0.00015827,2]
[366187772,1750104650408,-496.79960597,0.00015827,2]
[366187773,1750104650418,-574.72,0.00015827,2]
[366187774,1750104650428,-1606.7,0.00015827,2]
[366187775,1750104650438,-490.0,0.00015827,2]
[366187776,1750104650448,-7755.07,0.00015827,2]
[366187777,1750104650459,-490.0,0.00015827,2]
[366187778,1750104650468,-1681.53,0.00015827,2]
[366187779,1750104650478,-490.0,0.00015827,2]
[366187780,1750104650488,-490.0,0.00015827,2]
[366187781,1750104650498,-1900.07,0.00015827,2]
[366187782,1750104650508,-490.0,0.00015827,2]
[366187783,1750104650518,-516.77,0.00015827,2]
[366187784,1750104650528,-490.0,0.00015827,2]
[366187785,1750104650538,-490.0,0.00015827,2]
[366187786,1750104650548,-2924.91,0.00015827,2]
[366187787,1750104650558,-2844.63,0.00015827,2]
[366187788,1750104650568,-1557.21,0.00015827,2]
[366187789,1750104650578,-490.0,0.00015827,2]
[366187790,1750104650588,-490.0,0.00015827,2]
[366187791,1750104650598,-490.0,0.00015827,2]
[366187792,1750104650608,-490.0,0.00015827,2]
[366187793,1750104650618,-490.0,0.00015827,2]
[366187794,1750104650629,-576.19,0.00015827,2]
[366187795,1750104650639,-490.0,0.00015827,2]
[366187796,1750104650650,-490.0,0.00015827,2]
[366187797,1750104650660,-984.88,0.00015827,2]
[366187798,1750104650671,-490.0,0.00015827,2]
[366187799,1750104650681,-1224.37,0.00015827,2]
[366187800,1750104650692,-490.0,0.00015827,2]
[366187801,1750104650702,-490.0,0.00015827,2]
[366187802,1750104650718,-2142.72,0.00015827,2]
[366187803,1750104650728,-517.99,0.00015827,2]
[366187804,1750104650738,-758.02,0.00015827,2]
[366187805,1750104650749,-762.72,0.00015827,2]
[366187806,1750104650759,-490.0,0.00015827,2]
[366187807,1750104650769,-3747.5,0.00015827,2]
[366187808,1750104650779,-490.0,0.00015827,2]
[366187809,1750104650789,-5472.19,0.00015827,2]
[366187810,1750104650799,-490.0,0.00015827,2]
[366187811,1750104650813,-2062.25,0.00015827,2]
[366187812,1750104650823,-490.0,0.00015827,2]
[366187813,1750104650834,-490.0,0.00015827,2]
[366187814,1750104650844,-3236.01,0.00015827,2]
[366187815,1750104650855,-490.0,0.00015827,2]
[366187816,1750104650865,-618.494544,0.00015827,2]
[366187817,1750104650876,-490.0,0.00015827,2]
[366187818,1750104650887,-3168.77,0.00015827,2]
[366187819,1750104650897,-1372.71,0.00015827,2]
[366187820,1750104650907,-490.0,0.00015827,2]
[366187821,1750104650917,-490.0,0.00015827,2]
[366187822,1750104650927,-490.0,0.00015827,2]
[366187823,1750104650937,-1028.44,0.00015827,2]
[366187824,1750104650948,-1220.65,0.00015827,2]
[366187825,1750104650958,-1000.0,0.00015827,2]
[366187826,1750104650968,-490.0,0.00015827,2]
[366187827,1750104650978,-614.91,0.00015827,2]
[366187828,1750104650988,-490.0,0.00015827,2]
[366187829,1750104650998,-490.0,0.00015827,2]
[366187830,1750104651007,-490.0,0.00015827,2]
[366187831,1750104651018,-527.82,0.00015827,2]
[366187832,1750104651027,-490.0,0.00015828,2]
[366187833,1750104651038,-490.0,0.00015828,2]
[366187834,1750104651047,-490.0,0.00015828,2]
[366187835,1750104651058,-490.0,0.00015828,2]
[366187836,1750104651067,-490.0,0.00015828,2]
[366187837,1750104651077,-703.86,0.00015828,2]
[366187838,1750104651088,-659.31,0.00015828,2]
[366187839,1750104651098,-617.31,0.00015828,2]
[366187840,1750104651108,-563.6,0.00015828,2]
[366187841,1750104651119,-490.0,0.00015828,2]
[366187842,1750104651129,-836.34,0.00015828,2]
[366187843,1750104651139,-490.0,0.00015828,2]
[366187844,1750104651155,-490.0,0.00015828,2]
[366187845,1750104651164,-490.0,0.00015828,2]
[366187846,1750104651175,-631.58,0.00015828,2]
[366187847,1750104651186,-490.0,0.00015828,2]
[366187848,1750104651196,-490.0,0.00015828,2]
[366187849,1750104651206,-490.0,0.00015828,2]
[366187850,1750104651217,-523.17,0.00015828,2]
[366187851,1750104651227,-188.38456391,0.00015828,2]
[366187852,1750104651237,-641.57,0.00015828,2]
[366187853,1750104651247,-490.0,0.00015828,2]
[366187854,1750104651258,-490.0,0.00015828,2]
[366187855,1750104651268,-490.0,0.00015828,2]
[366187856,1750104651278,-490.0,0.00015828,2]
[366187857,1750104651289,-628.3,0.00015828,2]
[366187858,1750104651299,-490.0,0.00015828,2]
[366187859,1750104651309,-490.0,0.00015828,2]
[366187860,1750104651319,-490.0,0.00015828,2]
[366187861,1750104651329,-649.97,0.00015828,2]
[366187862,1750104651340,-279.26509218,0.00015828,2]
[366187863,1750104651350,-490.0,0.00015828,2]
[366187864,1750104651359,-607.43,0.00015828,2]
[366187865,1750104651370,-566.4,0.00015828,2]
[366187866,1750104651379,-490.0,0.00015828,2]
[366187867,1750104651389,-614.64,0.00015828,2]
[366187868,1750104651399,-490.0,0.00015828,2]
[366187869,1750104651410,-490.0,0.00015828,2]
[366187870,1750104651420,-576.73,0.00015828,2]
[366187871,1750104651429,-868.34,0.00015828,2]
[366187872,1750104651439,-490.0,0.00015828,2]
[366187873,1750104651451,-490.0,0.00015828,2]
[366187874,1750104651460,-529.35,0.00015828,2]
[366187875,1750104651470,-490.0,0.00015828,2]
[366187876,1750104651480,-618.0,0.00015828,2]
[366187877,1750104651490,-490.0,0.00015828,2]
[366187878,1750104651500,-621.34,0.00015828,2]
[366187879,1750104651510,-689.37,0.00015828,2]
[366187880,1750104651520,-494.88,0.00015828,2]
[366187881,1750104651530,-490.0,0.00015828,2]
[366187882,1750104651540,-490.0,0.00015828,2]
[366187883,1750104651550,-711.91,0.00015828,2]
[366187884,1750104651560,-490.0,0.00015828,2]
[366187885,1750104651570,-490.0,0.00015828,2]
[366187886,1750104651591,-490.0,0.00015828,2]
[366187887,1750104651603,-516.15,0.00015828,2]
[366187888,1750104651613,-640.62,0.00015828,2]
[366187889,1750104651624,-741.8,0.00015828,2]
[366187890,1750104651634,-607.83109912,0.00015828,2]
[366187891,1750104651644,-829.01,0.00015828,2]
[366187892,1750104651654,-490.0,0.00015828,2]
[366187893,1750104651665,-490.0,0.00015828,2]
[366187894,1750104651675,-522.17,0.00015828,2]
[366187895,1750104651685,-490.0,0.00015828,2]
[366187896,1750104651696,-514.77,0.00015828,2]
[366187897,1750104651706,-563.82,0.00015828,2]
[366187898,1750104651716,-189.0,0.00015852,2]
[366187899,1750104651726,-189.0,0.00015854,2]
[366187900,1750104651736,-4603.81558669,0.0001586,2]
[366187901,1750104651747,-3324.75547722,0.0001586,2]
[366187902,1750104651757,-490.0,0.00015881,2]
[366187903,1750104651768,-490.0,0.00015881,2]
[366187904,1750104651778,-490.0,0.00015881,2]
[366187905,1750104651788,-490.0,0.00015881,2]
[366187906,1750104651798,-256.60175452,0.00015881,2]
[366187907,1750104651811,-490.0,0.00015881,2]
[366187908,1750104651822,-490.0,0.00015881,2]
[366187909,1750104651831,-490.0,0.00015881,2]
[366187910,1750104651842,-490.0,0.00015881,2]
[366187911,1750104651853,-490.0,0.00015881,2]
[366187912,1750104651863,-490.0,0.00015881,2]
[366187913,1750104651873,-490.0,0.00015881,2]
[366187914,1750104651884,-490.0,0.00015881,2]
[366187915,1750104651894,-490.0,0.00015881,2]
[366187916,1750104651904,-490.0,0.00015881,2]
[366187917,1750104651915,-490.0,0.00015881,2]
[366187918,1750104651925,-490.0,0.00015881,2]
[366187919,1750104651934,-490.0,0.00015881,2]
[366187920,1750104651944,-490.0,0.00015881,2]
[366187921,1750104651954,-490.0,0.00015881,2]
[366187922,1750104651964,-584.09661243,0.00015881,2]
[366187923,1750104651974,-490.0,0.00015881,2]
[366187924,1750104651984,-490.0,0.00015881,2]
[366187925,1750104651995,-490.0,0.00015881,2]
[366187926,1750104652005,-490.0,0.00015881,2]
[366187927,1750104652016,-490.0,0.00015881,2]
[366187928,1750104652031,-490.0,0.00015881,2]
[366187929,1750104652041,-490.0,0.00015881,2]
[366187930,1750104652052,-490.0,0.00015881,2]
[366187931,1750104652062,-490.0,0.00015881,2]
[366187932,1750104652072,-490.0,0.00015881,2]
[366187933,1750104652084,-490.0,0.00015881,2]
[366187934,1750104652095,-490.0,0.00015881,2]
[366187935,1750104652105,-490.0,0.00015881,2]
[366187936,1750104652115,-490.0,0.00015881,2]
[366187937,1750104652125,-490.0,0.00015881,2]
[366187938,1750104652136,-490.0,0.00015881,2]
[366187939,1750104652147,-490.0,0.00015881,2]
[366187940,1750104652157,-490.0,0.00015881,2]
[366187941,1750104652167,-490.0,0.00015881,2]
[366187942,1750104652177,-471.41337857,0.00015881,2]
[366187943,1750104652188,-490.0,0.00015881,2]
[366187944,1750104652198,-490.0,0.00015882,2]
[366187945,1750104652208,-617.19940066,0.00015882,2]
[366187946,1750104652217,-440.30201643,0.00015891,2]
[366187947,1750104652227,-151.30590679,0.00015898,2]
[366187948,1750104652237,-164.62597121,0.000159,2]
[366187949,1750104652247,-164.62597117,0.000159,2]
[366187950,1750104652258,-255.0,0.00015913,2]
[366187951,1750104652268,-168.0,0.00015925,2]
[366187952,1750104652278,-385.0,0.00015937,2]
[366187953,1750104652288,-710.09222139,0.00015941,2]
[366187954,1750104652298,-164.62597117,0.00015942,2]
[366187955,1750104652308,-163.43123167,0.00015947,2]
[366187956,1750104652318,-200.0,0.00015969,2]
[366187957,1750104652328,-151.0,0.00015982,2]
[366187958,1750104652338,-151.0,0.00015982,2]
[366187959,1750104652348,-490.0,0.00015991,2]
[366187960,1750104652358,-645.18,0.00015991,2]
[366187961,1750104652368,-651.62,0.00015991,2]
[366187962,1750104652379,-1053.330119,0.00015991,2]
[366187963,1750104652389,-562.92,0.00015991,2]
[366187964,1750104652399,-574.26,0.00015991,2]
[366187965,1750104652410,-636.4,0.00015991,2]
[366187966,1750104652420,-490.0,0.00015991,2]
[366187967,1750104652430,-1093.44,0.00015991,2]
[366187968,1750104652440,-1941.86,0.00015991,2]
[366187969,1750104652450,-643.88,0.00015991,2]
[366187970,1750104652465,-2719.56,0.00015991,2]
[366187971,1750104652475,-166.132104,0.00015991,2]
[366187972,1750104652486,-830.48,0.00015991,2]
[366187973,1750104652496,-1357.86,0.00015991,2]
[366187974,1750104652507,-906.95,0.00015991,2]
[366187975,1750104652517,-490.0,0.00015991,2]
[366187976,1750104652527,-490.0,0.00015991,2]
[366187977,1750104652539,-596.59,0.00015991,2]
[366187978,1750104652777,-1302.19,0.00015991,2]
[366187979,1750104652787,-498.26,0.00015991,2]
[366187980,1750104652798,-520.64,0.00015991,2]
[366187981,1750104652811,-3409.01,0.00015991,2]
[366187982,1750104652821,-490.0,0.00015991,2]
[366187983,1750104652831,-490.0,0.00015991,2]
[366187984,1750104652840,-1121.01,0.00015991,2]
[366187985,1750104652851,-490.0,0.00015991,2]
[366187986,1750104652861,-2152.11,0.00015991,2]
[366187987,1750104652871,-490.0,0.00015991,2]
[366187988,1750104652883,-490.0,0.00015991,2]
[366187989,1750104652893,-703.85,0.00015991,2]
[366187990,1750104652903,-490.0,0.00015991,2]
[366187991,1750104652913,-765.88,0.00015991,2]
[366187992,1750104652923,-1293.43,0.00015991,2]
[366187993,1750104652933,-490.0,0.00015991,2]
[366187994,1750104652943,-2680.03,0.00015991,2]
[366187995,1750104652952,-490.0,0.00015991,2]
[366187996,1750104652963,-1123.57,0.00015991,2]
[366187997,1750104652974,-683.91,0.00015991,2]
[366187998,1750104652984,-496.21,0.00015991,2]
[366187999,1750104652994,-490.0,0.00015991,2]
[366188000,1750104653003,-1265.19,0.00015991,2]
[366188001,1750104653013,-1368.0,0.00015991,2]
[366188002,1750104653022,-414.09115659,0.00015991,2]
[366188003,1750104653032,-539.37,0.00015991,2]
[366188004,1750104653043,-490.0,0.00015991,2]
[366188005,1750104653053,-1681.53,0.00015991,2]
[366188006,1750104653063,-490.0,0.00015991,2]
[366188007,1750104653072,-1900.07,0.00015991,2]
[366188008,1750104653082,-166.132103,0.00015991,2]
[366188009,1750104653092,-490.0,0.00015991,2]
[366188010,1750104653102,-490.0,0.00015991,2]
[366188011,1750104653112,-490.0,0.00015991,2]
[366188012,1750104653122,-984.88,0.00015991,2]
[366188013,1750104653133,-490.0,0.00015991,2]
[366188014,1750104653142,-1224.37,0.00015991,2]
[366188015,1750104653152,-758.02,0.00015991,2]
[366188016,1750104653162,-762.72,0.00015991,2]
[366188017,1750104653172,-490.0,0.00015991,2]
[366188018,1750104653181,-2062.25,0.00015991,2]
[366188019,1750104653191,-210.2230161,0.00015991,2]
[366188020,1750104653202,-490.0,0.00015991,2]
[366188021,1750104653212,-618.494544,0.00015991,2]
[366188022,1750104653222,-490.0,0.00015991,2]
[366188023,1750104653233,-3168.77,0.00015991,2]
[366188024,1750104653243,-490.0,0.00015991,2]
[366188025,1750104653254,-215.45128377,0.00015991,2]
[366188026,1750104653265,-423.64955339,0.00015991,2]
[366188027,1750104653274,-1028.44,0.00015991,2]
[366188028,1750104653285,-1220.65,0.00015991,2]
[366188029,1750104653295,-490.0,0.00015991,2]
[366188030,1750104653305,-490.0,0.00015991,2]
[366188031,1750104653315,-440.30201643,0.00015992,2]
[366188032,1750104653325,-490.0,0.00015992,2]
[366188033,1750104653336,-490.0,0.00015992,2]
[366188034,1750104653345,-275.90047518,0.00015992,2]
[366188035,1750104653355,-490.0,0.00015992,2]
[366188036,1750104653365,-490.0,0.00015992,2]
[366188037,1750104653375,-490.0,0.00015992,2]
[366188038,1750104653386,-490.0,0.00015992,2]
[366188039,1750104653396,-490.0,0.00015992,2]
[366188040,1750104653406,-703.86,0.00015992,2]
[366188041,1750104653417,-659.31,0.00015992,2]
[366188042,1750104653426,-490.0,0.00015992,2]
[366188043,1750104653437,-490.0,0.00015992,2]
[366188044,1750104653446,-563.6,0.00015992,2]
[366188045,1750104653457,-617.31,0.00015992,2]
[366188046,1750104653468,-506.16,0.00015992,2]
[366188047,1750104653478,-490.0,0.00015992,2]
[366188048,1750104653489,-242.03515696,0.00015992,2]
[366188049,1750104653498,-836.34,0.00015992,2]
[366188050,1750104653509,-490.0,0.00015992,2]
[366188051,1750104653519,-490.0,0.00015992,2]
[366188052,1750104653528,-490.0,0.00015992,2]
[366188053,1750104653539,-490.0,0.00015992,2]
[366188054,1750104653549,-490.0,0.00015992,2]
[366188055,1750104653559,-490.0,0.00015992,2]
[366188056,1750104653569,-158.55925989,0.00015992,2]
[366188057,1750104653579,-490.0,0.00015992,2]
[366188058,1750104653589,-490.0,0.00015992,2]
[366188059,1750104653599,-490.0,0.00015992,2]
[366188060,1750104653610,-631.58,0.00015992,2]
[366188061,1750104653621,-490.0,0.00015992,2]
[366188062,1750104653632,-490.0,0.00015992,2]
[366188063,1750104653641,-589.07176296,0.00015992,2]
[366188064,1750104653652,-490.0,0.00015992,2]
[366188065,1750104653661,-490.0,0.00015992,2]
[366188066,1750104653672,-490.0,0.00015992,2]
[366188067,1750104653682,-490.0,0.00015992,2]
[366188068,1750104653692,-490.0,0.00015992,2]
[366188069,1750104653702,-523.17,0.00015992,2]
[366188070,1750104653713,-490.0,0.00015992,2]
[366188071,1750104653723,-490.0,0.00015992,2]
[366188072,1750104653734,-641.57,0.00015992,2]
[366188073,1750104653744,-490.0,0.00015992,2]
[366188074,1750104653755,-490.0,0.00015992,2]